bitfinex/quotes_ETHUSD_20220308
["timestamp","ask_amount","ask_price","bid_price","bid_amount"]
[1646697600733,5.0,2493.8,2492.7,1.2368377]
[1646697600932,2.04455313,2493.3,2492.8,1.2209364]
[1646697601328,3.04806313,2493.3,2492.8,1.2209364]
[1646697601528,2.04455313,2493.3,2492.5,0.4008]
[1646697601729,3.04455313,2493.3,2492.5,0.4008]
[1646697601926,1.00348,2493.2,2492.3,0.60547203]
[1646697602126,1.30348,2493.2,2492.3,0.55547203]
[1646697602328,0.3,2493.2,2492.4,5.0]
[1646697602766,1.05542756,2493.4,2492.1,3.5]
[1646697602967,0.58252756,2493.4,2492.1,3.5]
[1646697603169,1.0034056,2493.1,2492.1,3.5]
[1646697603372,3.5843568,2493.3,2492.2,5.0]
[1646697603573,1.5774456,2493.3,2492.3,3.5]
[1646697603773,1.5774456,2493.3,2492.1,4.5]
[1646697603975,0.10805838,2492.7,2492.1,3.5]
[1646697604173,0.10805838,2492.7,2492.1,4.5]
[1646697604573,3.00857175,2493.3,2492.6,1.2007046]
[1646697604771,0.3,2493.2,2492.6,1.2007046]
[1646697605172,1.30348,2493.2,2492.6,1.2007046]
[1646697605572,0.10805838,2492.9,2492.6,1.19654229]
[1646697605773,0.10805838,2492.9,2492.8,0.00416198]
[1646697606416,3.3101452,2493.2,2493.0,0.05517376]
[1646697606618,3.6101452,2493.2,2493.0,0.05517376]
[1646697606917,0.3,2493.1,2493.0,0.55197376]
[1646697607115,1.3034,2493.1,2493.0,0.55197376]
[1646697607314,1.0034,2493.1,2493.0,1.60076818]
[1646697607516,1.3034,2493.1,2493.0,0.55197376]
[1646697607715,1.3034,2493.1,2493.0,0.05517376]
[1646697609119,1.3034,2493.1,2493.0,1.08006266]
[1646697609323,1.3034,2493.1,2493.0,2.10495156]
[1646697609324,1.0034,2493.1,2493.0,2.10495156]
[1646697610567,6.1806,2493.5,2493.0,2.10495156]
[1646697610768,0.3,2493.1,2493.0,2.10495156]
[1646697610966,8.18404,2493.5,2493.0,2.10495156]
[1646697610967,7.1806,2493.5,2493.0,2.10495156]
[1646697611172,2.00696,2493.3,2493.0,2.10495156]
[1646697611769,1.02901589,2493.2,2493.0,2.10495156]
[1646697611968,1.02901589,2493.2,2493.1,0.00374525]
[1646697612170,1.00327,2493.3,2493.1,0.00374525]
[1646697612370,2.20703,2493.6,2493.1,0.00374525]
[1646697612570,2.00653,2493.6,2493.1,0.00374525]
[1646697612770,2.00653,2493.6,2493.0,2.10495156]
[1646697613174,2.00653,2493.6,2493.1,0.00376127]
[1646697613372,1.00322,2493.5,2493.1,0.00376127]
[1646697613570,0.3,2493.4,2493.1,0.00376127]
[1646697613833,1.00322,2493.5,2493.1,0.00376127]
[1646697614018,1.00322,2493.5,2493.0,2.10495156]
[1646697614216,1.00322,2493.5,2493.1,0.96691447]
[1646697614417,6.66743,2493.7,2493.3,1.0248889]
[1646697614618,6.66743,2493.7,2493.3,2.0497778]
[1646697615220,6.96743,2493.7,2493.3,2.0497778]
[1646697615419,6.96743,2493.7,2493.4,0.00376082]
[1646697615621,1.00321,2493.6,2493.4,0.00376082]
[1646697616022,1.45683,2493.7,2493.4,0.00376082]
[1646697616221,0.45683,2493.7,2493.4,0.00376082]
[1646697616425,0.45683,2493.7,2493.3,2.0497778]
[1646697616622,0.15683,2493.7,2493.4,0.0034636]
[1646697617023,1.00321,2493.6,2493.4,0.0034636]
[1646697617223,1.30321,2493.6,2493.4,0.0034636]
[1646697617679,1.30321,2493.6,2493.3,2.0497778]
[1646697617886,1.30321,2493.6,2493.4,0.0034636]
[1646697618082,0.45683,2493.7,2493.4,0.0034636]
[1646697618083,1.00314,2493.7,2493.4,0.0034636]
[1646697618285,7.7756,2494.0,2493.4,0.0034636]
[1646697618482,1.42486141,2494.6,2493.4,0.0034636]
[1646697618483,0.6015,2494.5,2493.4,0.0034636]
[1646697618783,0.2005,2494.5,2493.3,5.9499778]
[1646697618990,1.14958324,2494.4,2493.7,0.99594992]
[1646697619783,1.14958324,2494.4,2494.0,2.0497778]
[1646697619984,1.44958324,2494.4,2494.0,2.0497778]
[1646697620183,1.00302,2494.1,2494.0,2.0497778]
[1646697621083,1.30302,2494.1,2494.0,2.0497778]
[1646697621921,0.0849,2494.2,2494.0,5.5497778]
[1646697622122,0.0849,2494.2,2494.0,2.4499778]
[1646697623221,0.01742079,2494.6,2494.3,0.4002]
[1646697623623,0.01742079,2494.6,2494.5,0.4002]
[1646697623823,0.01742079,2494.6,2494.5,0.8912]
[1646697624027,0.01742079,2494.6,2494.5,4.3912]
[1646697624223,0.01742079,2494.6,2494.5,5.3912]
[1646697624424,0.01742079,2495.4,2494.7,0.4002]
[1646697624626,0.01742079,2495.1,2494.8,4.3912]
[1646697624825,0.01742079,2495.1,2494.8,0.8912]
[1646697625067,0.01742079,2495.1,2495.0,1.4250889]
[1646697625274,0.01742079,2495.1,2495.0,2.9409778]
[1646697625673,0.01742079,2495.1,2495.0,4.16601829]
[1646697625878,2.079e-05,2495.1,2495.0,8.66811829]
[1646697626074,0.01742079,2495.4,2495.2,0.4002]
[1646697626276,0.01742079,2495.9,2495.4,0.4002]
[1646697626477,0.01742079,2495.9,2495.6,0.4002]
[1646697626677,0.01742079,2495.9,2495.4,1.0329]
[1646697626678,0.01742079,2495.9,2495.8,1.42301351]
[1646697627073,0.01742079,2495.9,2495.8,4.92301351]
[1646697627274,0.01742079,2495.9,2495.8,7.41596351]
[1646697627876,0.01742079,2495.9,2495.8,7.61626351]
[1646697628179,0.90815083,2497.0,2496.5,0.4002]
[1646697628377,0.38353444,2496.9,2496.8,1.44000141]
[1646697628579,0.38353444,2497.0,2496.8,1.93100141]
[1646697628823,0.01742079,2497.4,2496.8,1.93100141]
[1646697629023,0.38345746,2497.3,2496.8,1.93100141]
[1646697629228,0.38345746,2497.3,2496.8,1.53080141]
[1646697629424,0.38345746,2497.3,2497.2,0.4968]
[1646697629823,0.38345746,2497.3,2496.3,1.00162]
[1646697629824,0.36650439,2497.1,2496.2,0.491]
[1646697630024,0.36650439,2497.1,2496.0,1.0]
[1646697630025,0.38345746,2497.0,2496.0,0.491]
[1646697630229,0.38345746,2497.0,2495.6,0.491]
[1646697630430,0.38345746,2497.0,2496.6,1.0248889]
[1646697632327,0.00520279,2496.9,2496.6,1.0248889]
[1646697632571,0.00520279,2496.9,2496.6,2.0265789]
[1646697633074,0.00520279,2496.9,2496.8,0.8994102]
[1646697633273,0.36650439,2497.1,2496.8,2.1171102]
[1646697633471,0.36650439,2497.1,2496.8,2.21931]
[1646697633671,0.00520281,2496.9,2496.8,1.2177]
[1646697634477,0.36650439,2497.1,2496.8,1.2177]
[1646697634973,0.36650439,2497.1,2497.0,1.00144]
[1646697635381,0.25425669,2497.1,2497.0,2.59324]
[1646697635583,0.25425669,2497.1,2497.0,3.08424]
[1646697635878,0.25425669,2497.1,2497.0,6.1340178]
[1646697636078,0.27167748,2497.1,2497.0,6.1340178]
[1646697636321,0.27167748,2497.1,2497.0,5.4338178]
[1646697637123,0.28909827,2497.1,2497.0,5.4338178]
[1646697637325,0.28909827,2497.1,2497.0,2.0497778]
[1646697638124,0.30651906,2497.1,2497.0,2.0497778]
[1646697638326,0.30651906,2497.1,2497.0,3.03455426]
[1646697638525,0.30651906,2497.1,2497.0,2.0497778]
[1646697638726,0.28909827,2497.1,2497.0,2.0497778]
[1646697639134,5.0,2497.0,2496.3,0.00355045]
[1646697639327,5.0,2497.0,2496.0,0.2001]
[1646697639328,3.5,2496.9,2496.1,0.5]
[1646697639526,0.91473144,2496.8,2496.1,0.5]
[1646697639731,1.02553281,2496.2,2496.1,0.5]
[1646697639926,1.02553281,2496.2,2495.2,0.2003]
[1646697639927,1.32553281,2496.2,2495.2,0.2003]
[1646697640380,3.33008281,2496.2,2495.3,1.0022]
[1646697640583,11.26128281,2496.2,2495.4,0.2003]
[1646697640779,12.2787036,2496.2,2495.4,0.2003]
[1646697640982,1.06373602,2495.8,2495.6,0.00355142]
[1646697641584,7.7344,2495.7,2495.6,0.00355142]
[1646697641779,0.01742079,2495.7,2494.5,1.0023865]
[1646697641981,0.01742079,2495.7,2494.9,1.00237]
[1646697642178,0.01742079,2495.7,2495.6,0.00354274]
[1646697642383,7.7344,2495.7,2495.6,0.00354274]
[1646697642580,5.41039602,2495.8,2495.6,0.00354274]
[1646697642779,3.66619602,2495.8,2495.6,0.00354274]
[1646697642983,6.07117602,2495.8,2494.8,0.2003]
[1646697643181,0.97335,2495.6,2495.5,0.00354281]
[1646697643381,0.97335,2495.6,2494.8,0.18642202]
[1646697643822,0.97335,2495.6,2494.7,0.5]
[1646697644124,1.11717751,2495.0,2494.7,0.5]
[1646697644725,4.9002,2495.5,2493.9,0.2003]
[1646697644726,4.5,2495.5,2493.9,0.2003]
[1646697644927,4.5,2495.5,2493.8,0.6005]
[1646697644928,1.4002,2495.5,2493.8,0.6005]
[1646697645126,1.7002,2495.5,2493.8,0.6005]
[1646697645328,2.00503,2495.4,2494.4,2.00492]
[1646697645728,1.11597631,2494.9,2494.6,0.00106363]
[1646697646529,0.4002,2495.3,2494.4,1.95598363]
[1646697646530,1.00257,2495.3,2494.4,1.95598363]
[1646697646733,0.2003,2495.5,2494.4,2.65618363]
[1646697646927,3.101,2495.6,2494.6,0.00106361]
[1646697647327,1.34892079,2496.2,2494.6,2.00560361]
[1646697647593,1.05368945,2495.4,2494.6,2.00560361]
[1646697647776,1.05368945,2495.4,2494.6,2.00454]
[1646697647976,1.05368945,2495.4,2494.7,1.00227]
[1646697648376,1.35368945,2495.4,2494.7,1.00227]
[1646697648777,0.99269676,2494.9,2494.7,1.00227]
[1646697648977,1.00248,2495.3,2494.6,2.00454]
[1646697649180,0.3,2495.2,2494.9,0.00380393]
[1646697649379,2.9273,2495.6,2495.0,1.00234]
[1646697649580,2.9273,2495.6,2494.9,0.00202736]
[1646697649978,2.9273,2495.6,2494.9,2.00656736]
[1646697649979,1.17034554,2495.5,2494.9,2.00656736]
[1646697650186,1.17034554,2495.5,2494.9,2.00454]
[1646697650584,2.9273,2495.6,2494.9,2.00454]
[1646697650784,1.00232,2495.8,2494.9,2.00454]
[1646697651182,0.6,2495.8,2494.9,2.00454]
[1646697651427,0.6,2495.8,2494.8,1.00226]
[1646697651625,3.2971,2495.8,2494.8,1.00226]
[1646697651826,4.2971,2495.8,2494.8,1.00226]
[1646697652027,1.00238,2495.6,2494.8,1.00226]
[1646697652225,1.30238,2495.6,2494.8,1.00226]
[1646697652425,1.03446444,2495.0,2494.6,2.0048]
[1646697652627,0.3,2495.5,2494.5,1.00252]
[1646697652831,0.3,2495.6,2494.7,0.00421186]
[1646697652832,0.6,2495.6,2494.7,0.00421186]
[1646697653028,0.2003,2495.6,2494.7,0.00421186]
[1646697653827,0.88454048,2495.1,2494.7,1.00245]
[1646697654029,0.88454048,2495.1,2494.7,0.00421186]
[1646697654229,1.18454048,2495.1,2494.7,0.00421186]
[1646697654629,7.7476,2495.0,2494.7,0.00421186]
[1646697654831,8.75022,2495.0,2494.7,0.00421186]
[1646697655081,8.75022,2495.0,2494.4,1.00258]
[1646697655276,8.75022,2495.0,2494.7,0.00421186]
[1646697656078,9.75022,2495.0,2494.7,0.00421186]
[1646697656277,10.15042,2495.0,2493.9,1.00277]
[1646697656578,9.75022,2495.0,2494.7,0.00421186]
[1646697657377,9.75022,2495.0,2493.7,0.5]
[1646697657378,1.0030138,2494.8,2493.7,0.5]
[1646697657580,0.4002,2494.6,2493.4,0.2003]
[1646697657777,1.40333,2494.4,2493.3,0.01496023]
[1646697657983,1.70333,2494.4,2493.4,0.2003]
[1646697658182,1.00313,2494.4,2493.4,0.2003]
[1646697658378,2.00625,2494.5,2493.8,1.19349837]
[1646697658379,0.90948126,2494.5,2493.8,1.19349837]
[1646697658677,0.90948126,2494.5,2493.2,0.5]
[1646697658678,0.90948126,2494.5,2493.6,3.7003]
[1646697658939,2.61251126,2494.5,2493.3,3.7003]
[1646697659126,2.21231126,2494.5,2493.7,2.00547]
[1646697659330,3.21231126,2494.5,2493.3,3.5]
[1646697659526,1.16397574,2494.0,2493.5,1.00295]
[1646697659827,8.0136,2493.9,2493.5,1.00295]
[1646697660427,8.0136,2493.9,2493.6,1.00291]
[1646697660634,8.0136,2493.9,2493.7,1.00273]
[1646697661629,8.0136,2493.9,2493.6,3.01257315]
[1646697661828,8.0136,2493.9,2493.6,0.00420315]
[1646697662234,8.0136,2493.9,2493.5,1.00297]
[1646697662429,8.0136,2493.9,2493.6,0.00420315]
[1646697662671,0.8863769,2494.1,2493.6,0.00420315]
[1646697662872,7.5354,2494.0,2493.6,0.00420315]
[1646697663276,7.5354,2494.0,2493.7,1.00287]
[1646697663670,7.5354,2494.0,2493.7,0.00420307]
[1646697664473,7.5354,2494.0,2493.3,5.50945709]
[1646697664675,7.5354,2494.0,2493.3,2.00586]
[1646697664877,8.59596777,2494.0,2493.7,0.00420299]
[1646697665780,8.59596777,2494.0,2493.5,1.00296]
[1646697666178,7.54039841,2494.0,2493.5,1.00296]
[1646697666824,0.00499841,2494.0,2493.5,1.00296]
[1646697667024,1.0,2494.9,2493.5,1.00296]
[1646697667225,0.37083759,2494.8,2493.8,1.00269]
[1646697667425,0.90496743,2494.6,2494.0,1.00274]
[1646697667627,7.8232,2494.5,2494.0,1.00274]
[1646697668526,0.00499823,2494.4,2494.0,1.00274]
[1646697668727,0.00499823,2494.4,2494.2,1.00263]
[1646697668927,0.00499823,2494.4,2494.3,3.5]
[1646697669126,0.00499823,2494.4,2494.2,1.86393]
[1646697669329,1.1955,2495.8,2494.3,5.4002]
[1646697669532,4.01041,2496.3,2494.6,5.0]
[1646697669533,0.71911187,2496.2,2494.6,5.0]
[1646697669727,0.01997932,2495.3,2494.9,1.14592207]
[1646697670093,0.01997932,2495.3,2495.0,1.00229]
[1646697670484,0.01997932,2495.3,2495.0,0.995743]
[1646697670684,5.9532,2496.0,2495.0,0.995743]
[1646697670888,1.17220519,2495.9,2495.0,0.995743]
[1646697671283,1.47220519,2495.9,2495.0,0.99354686]
[1646697672087,1.0023,2495.8,2495.0,0.99354686]
[1646697672285,0.3,2495.9,2495.3,1.0022]
[1646697672686,5.2509,2496.0,2495.3,1.0022]
[1646697673286,0.00519822,2495.7,2495.3,1.0022]
[1646697674126,4.9509,2496.0,2495.3,1.0022]
[1646697674428,0.00519827,2495.6,2495.3,2.1927]
[1646697675024,0.00519827,2495.6,2495.4,2.19960923]
[1646697675227,0.00519827,2495.6,2495.5,1.00197]
[1646697675427,8.9925,2496.6,2495.5,1.695602]
[1646697675631,8.9925,2496.6,2495.6,0.4002]
[1646697675927,0.02079005,2495.9,2495.8,0.5]
[1646697676133,0.02079005,2495.9,2495.8,1.4333]
[1646697676330,0.02079005,2495.9,2495.8,4.0253947]
[1646697676728,6.0195,2496.6,2495.9,1.0018386]
[1646697676930,0.00519809,2496.0,2495.9,1.7065386]
[1646697677327,0.00519809,2496.0,2495.9,2.0065386]
[1646697677591,0.00519809,2496.0,2495.9,2.6080686]
[1646697677777,0.01742079,2496.9,2495.9,3.6080686]
[1646697677979,0.01742079,2496.9,2496.4,2.15445952]
[1646697678180,0.01742079,2496.9,2496.4,3.24465952]
[1646697678583,0.01742079,2496.9,2496.5,1.00174]
[1646697679183,0.01742079,2496.9,2496.5,3.30492]
[1646697679383,0.00506019,2496.8,2496.5,1.30174]
[1646697679585,0.00506019,2496.8,2496.5,2.60174]
[1646697679783,0.00506019,2496.8,2496.5,1.00174]
[1646697680184,0.01742079,2496.9,2496.4,0.8904]
[1646697680385,0.01742079,2496.9,2496.4,1.3017971]
[1646697680589,0.00506019,2496.8,2496.4,0.3]
[1646697680784,0.00506019,2496.8,2496.3,2.30344]
[1646697681184,0.00506019,2496.8,2496.5,0.86518779]
[1646697681433,0.01742079,2496.9,2496.5,0.86518779]
[1646697681628,0.00483302,2496.7,2496.5,0.86518779]
[1646697682227,0.00483302,2496.7,2496.5,1.0017283]
[1646697682429,0.00483302,2496.7,2496.5,2.0034983]
[1646697682627,0.01742079,2496.9,2496.5,2.0034983]
[1646697682827,0.004833,2496.7,2496.5,2.0034983]
[1646697683828,0.01742079,2496.9,2496.5,2.0034983]
[1646697684228,0.01742079,2496.9,2496.6,0.03468352]
[1646697684229,0.004833,2496.7,2496.6,0.03468352]
[1646697684634,0.004833,2496.7,2496.6,0.75488352]
[1646697685198,0.25425669,2497.1,2496.7,1.0016]
[1646697685398,0.00499416,2496.8,2496.7,1.0016]
[1646697685599,0.00499416,2496.8,2496.7,0.98417921]
[1646697686195,0.27423031,2497.1,2496.7,1.98578701]
[1646697686196,0.25425669,2497.1,2496.7,1.98578701]
[1646697686601,0.00499411,2496.9,2496.7,1.98578701]
[1646697687197,0.00499411,2496.9,2496.7,1.0016078]
[1646697687396,0.25425669,2497.1,2496.7,1.0016078]
[1646697687797,0.00499409,2496.9,2496.7,1.0016078]
[1646697688598,0.25425669,2497.1,2496.7,1.0016078]
[1646697689030,0.00499243,2496.9,2496.7,1.0016078]
[1646697689230,0.00499243,2496.9,2496.7,2.0032678]
[1646697689424,0.00499243,2496.9,2496.7,0.2790953]
[1646697689625,0.26450319,2496.8,2496.7,0.01741289]
[1646697691032,1.46740322,2496.8,2496.7,0.01741289]
[1646697691834,0.26450319,2496.8,2496.7,0.01741289]
[1646697692973,0.00499269,2496.9,2496.7,0.01741289]
[1646697693375,0.25425669,2497.1,2496.7,0.01741289]
[1646697693674,0.00499269,2496.9,2496.8,1.00162]
[1646697694674,0.25425669,2497.1,2496.8,3.2465528]
[1646697694874,0.26939908,2497.0,2496.8,3.2465528]
[1646697695076,0.00499265,2497.0,2496.8,3.2465528]
[1646697695879,0.25425669,2497.1,2496.9,0.3]
[1646697696080,0.25425669,2497.1,2497.0,1.0015]
[1646697696925,0.25425669,2497.1,2497.0,2.15136926]
[1646697697130,0.25425669,2497.1,2497.0,3.15286476]
[1646697697324,0.25425669,2497.1,2497.0,3.45286476]
[1646697698827,0.25425669,2497.1,2497.0,2.0029955]
[1646697699030,0.51792792,2497.1,2496.9,0.0345716]
[1646697699228,0.26367123,2497.0,2496.9,0.0345716]
[1646697700084,0.25425669,2497.1,2496.9,0.0345716]
[1646697700277,0.25425669,2497.1,2497.0,1.00152]
[1646697700476,0.25425669,2497.1,2497.0,2.03462]
[1646697700678,0.25425669,2497.1,2497.0,2.33462]
[1646697701079,0.25924925,2497.1,2497.0,1.0331]
[1646697701277,0.25924925,2497.1,2496.9,0.0345716]
[1646697701877,0.25425669,2497.1,2496.9,0.0345716]
[1646697703383,0.25924819,2497.1,2496.9,0.0345716]
[1646697704326,0.25924819,2497.1,2497.0,0.01735925]
[1646697704327,0.25425669,2497.1,2497.0,0.01735925]
[1646697704525,0.25924819,2497.1,2497.0,0.01735925]
[1646697705050,0.51370905,2497.1,2497.0,0.01735925]
[1646697705103,5.0,2497.0,2496.0,0.5]
[1646697705136,0.02274564,2496.8,2496.0,0.5]
[1646697705430,0.25446086,2496.7,2496.0,0.5]
[1646697705629,0.95445728,2496.6,2496.0,0.5]
[1646697705829,0.25446086,2496.5,2495.8,2.17745049]
[1646697707030,0.00499182,2496.3,2495.8,1.00201]
[1646697707236,0.25495732,2496.2,2495.3,0.5]
[1646697707873,0.25495732,2496.2,2495.0,0.00710838]
[1646697708081,0.25495732,2496.2,2495.0,2.00448]
[1646697708082,1.084998,2495.4,2495.0,2.00448]
[1646697708276,1.084998,2495.4,2494.9,0.5]
[1646697708277,1.850298,2495.4,2494.9,0.5]
[1646697708478,2.150298,2495.4,2494.9,0.5]
[1646697708676,0.26011825,2495.3,2494.9,0.5]
[1646697709275,0.97367207,2495.0,2494.9,0.5]
[1646697709475,0.97367207,2495.0,2494.9,0.33848947]
[1646697710082,1.23110952,2495.0,2494.9,8.947e-05]
[1646697710283,1.23110952,2495.0,2494.5,1.74278013]
[1646697710482,0.25743745,2494.9,2494.5,1.74278013]
[1646697710881,0.25743745,2494.9,2493.8,1.00282]
[1646697710882,5.0,2494.8,2493.8,1.00282]
[1646697711088,0.25743745,2494.9,2493.8,1.00282]
[1646697711089,1.0628214,2494.2,2493.8,1.00282]
[1646697711331,0.4002,2494.6,2493.8,1.00282]
[1646697711332,1.00286,2494.6,2493.8,1.00282]
[1646697711731,1.30286,2494.6,2493.8,1.00282]
[1646697711929,6.0725,2494.5,2493.8,1.00282]
[1646697712131,6.0725,2494.5,2493.7,2.00555]
[1646697712334,7.0725,2494.5,2493.8,1.00452065]
[1646697712635,7.0725,2494.5,2493.7,2.00555]
[1646697712636,6.0725,2494.5,2493.7,3.0082828]
[1646697712830,6.0725,2494.5,2493.8,1.32325637]
[1646697713830,0.98532808,2494.2,2493.7,2.00555]
[1646697714431,7.3725,2494.5,2493.7,2.00555]
[1646697715483,1.04743315,2494.3,2493.8,1.00279]
[1646697715682,13.23743315,2494.3,2493.7,2.00555]
[1646697715882,5.0,2494.2,2493.2,2.14404997]
[1646697716086,5.0,2494.2,2493.1,0.01352225]
[1646697716087,15.69,2494.1,2493.1,0.01352225]
[1646697716382,1.0032759,2493.9,2493.2,1.32309539]
[1646697716582,1.0032759,2493.9,2492.4,8.06812707]
[1646697716583,1.40355,2493.7,2492.4,8.06812707]
[1646697716782,1.09665475,2493.3,2492.5,1.32316656]
[1646697716983,6.4492,2493.2,2492.6,1.32316656]
[1646697717186,6.4492,2493.2,2492.7,1.32316656]
[1646697717381,6.7492,2493.2,2492.3,1.0034]
[1646697717582,6.7492,2493.2,2492.4,1.3199592]
[1646697717988,6.4492,2493.2,2492.7,0.90036763]
[1646697718186,6.4492,2493.2,2492.4,1.3199592]
[1646697718187,6.4492,2493.2,2492.4,10.85]
[1646697718382,6.4492,2493.2,2492.7,1.00321]
[1646697718582,6.4492,2493.2,2492.7,2.00644]
[1646697719125,6.4492,2493.2,2492.8,1.31951239]
[1646697719324,6.4492,2493.2,2492.7,2.39206075]
[1646697719724,6.4492,2493.2,2492.7,1.30323]
[1646697720333,6.4492,2493.2,2492.8,0.00415588]
[1646697720731,1.0,2493.9,2492.9,6.00315]
[1646697720930,9.1383,2493.8,2493.0,3.5]
[1646697721132,9.1383,2493.8,2493.4,0.01296465]
[1646697721133,6.3897,2493.8,2493.4,0.01296465]
[1646697721630,0.4002,2494.5,2493.0,1.4002]
[1646697721829,0.4002,2494.5,2493.4,1.21089941]
[1646697721830,1.11292471,2494.3,2493.4,1.21089941]
[1646697722030,1.11292471,2494.3,2493.5,1.00275]
[1646697722881,1.20327,2494.5,2493.5,1.00275]
[1646697723080,0.2003,2494.5,2493.8,1.00285]
[1646697723578,0.2003,2494.5,2493.8,1.14104997]
[1646697723777,15.4852,2494.4,2493.8,1.14104997]
[1646697723976,15.4852,2494.4,2493.9,1.1418378]
[1646697724176,2.24087916,2494.8,2493.8,1.14104997]
[1646697724379,15.4852,2494.7,2493.8,0.13819997]
[1646697724579,5.70634,2494.6,2493.8,0.13819997]
[1646697724777,2.20634,2494.6,2493.8,0.13819997]
[1646697725181,1.18644315,2494.2,2493.8,0.13819997]
[1646697725385,1.18644315,2494.2,2493.6,0.00416761]
[1646697725582,1.48644315,2494.2,2493.6,0.00416761]
[1646697725982,1.88664315,2494.2,2492.7,2.0059835]
[1646697726183,0.20569474,2494.1,2493.6,0.00416761]
[1646697726457,2.70304474,2494.1,2493.6,0.00416761]
[1646697726655,1.1316539,2493.8,2493.6,0.00416761]
[1646697726856,11.5423,2493.7,2493.6,0.00416761]
[1646697727056,11.5423,2493.7,2493.2,0.01667324]
[1646697727259,15.9141,2493.7,2492.9,2.00628]
[1646697727457,18.0214,2493.7,2493.6,0.00416763]
[1646697728462,18.0214,2493.7,2492.8,1.00327]
[1646697728660,18.0214,2493.7,2493.5,0.00416771]
[1646697729061,19.02468,2493.7,2493.5,0.00416771]
[1646697729465,19.02468,2493.7,2493.2,0.01667336]
[1646697729659,19.02468,2493.7,2493.0,1.00324]
[1646697729859,18.0214,2493.7,2493.5,0.00369216]
[1646697730281,1.00332,2493.6,2493.5,0.00369216]
[1646697730489,18.0214,2493.7,2493.5,0.00369216]
[1646697730490,12.19,2493.9,2493.5,0.00369216]
[1646697730684,13.0812,2493.9,2492.7,2.00642]
[1646697730883,1.20493456,2493.6,2492.7,2.00642]
[1646697731083,15.4473,2493.5,2492.8,1.0033]
[1646697731685,15.4473,2493.5,2493.0,3.0]
[1646697732082,15.4473,2493.5,2492.9,1.00326]
[1646697732284,15.4473,2493.5,2493.4,3.0]
[1646697732486,1.00309,2494.2,2493.4,4.0001]
[1646697733187,1.17243566,2494.3,2493.4,4.97614055]
[1646697733385,1.17243566,2494.3,2493.6,0.00415506]
[1646697733386,0.0051919,2494.1,2493.6,0.00415506]
[1646697733584,2.0115619,2494.1,2493.6,0.00415506]
[1646697733826,11.7501,2494.0,2493.6,0.00415506]
[1646697734022,12.2366,2494.0,2493.6,0.00415506]
[1646697734423,12.2366,2494.0,2493.1,3.0]
[1646697734623,13.2366,2494.0,2493.1,3.0]
[1646697734823,0.0244917,2493.9,2493.6,0.00415506]
[1646697735023,2.12649816,2493.9,2493.6,0.00415506]
[1646697735230,8.4767,2493.8,2493.6,0.00415506]
[1646697735628,9.4767,2493.8,2493.1,3.0]
[1646697736230,4.50327,2493.7,2492.8,3.0]
[1646697736429,1.07751495,2493.4,2492.8,3.0]
[1646697736629,4.991,2493.7,2492.8,3.0]
[1646697736928,12.19,2494.2,2492.8,3.0]
[1646697737129,2.30677,2494.0,2492.8,3.0]
[1646697737332,1.00339,2493.8,2492.8,3.0]
[1646697737594,11.4676,2493.7,2492.8,3.0]
[1646697737779,0.491,2493.6,2492.8,3.0]
[1646697738081,0.491,2493.6,2492.7,3.0]
[1646697738280,1.18280894,2493.5,2493.2,0.00414876]
[1646697738484,4.68433894,2493.5,2493.2,0.00414876]
[1646697738882,0.3,2493.4,2493.2,0.00414876]
[1646697739083,0.3,2493.4,2492.4,6.49390223]
[1646697739283,0.3,2493.4,2492.4,3.49390223]
[1646697739482,0.3,2493.4,2493.2,0.00414868]
[1646697739684,0.0001,2493.5,2493.2,0.00414868]
[1646697739884,0.3001,2493.5,2493.2,0.00414868]
[1646697740084,10.9766,2493.4,2493.2,0.00414868]
[1646697740287,16.6704,2493.4,2492.5,3.0]
[1646697740491,1.00356,2493.2,2492.3,0.13819997]
[1646697740689,1.00356,2493.2,2492.9,0.01659719]
[1646697740690,0.491,2493.1,2492.9,0.01659719]
[1646697740995,5.0,2493.0,2492.0,0.5]
[1646697741185,0.491,2492.9,2492.0,0.5]
[1646697741424,1.66081558,2492.9,2492.0,1.43201131]
[1646697741626,1.66081558,2492.9,2492.1,3.0]
[1646697741824,1.49474,2492.9,2492.1,3.0]
[1646697742024,1.49474,2492.9,2492.0,1.43201131]
[1646697742229,1.49474,2492.9,2492.2,3.0]
[1646697742428,0.491,2492.9,2492.2,3.0]
[1646697742832,2.08801592,2493.0,2492.1,0.1365]
[1646697743031,2.08801592,2493.0,2492.5,1.00367]
[1646697743032,11.4268,2492.9,2492.5,1.00367]
[1646697743233,17.2859,2492.9,2492.5,1.00367]
[1646697743740,17.5859,2492.9,2492.4,0.0011205]
[1646697743932,17.5859,2492.9,2492.0,0.93201131]
[1646697744134,18.74847324,2492.9,2492.0,0.93201131]
[1646697744333,2.00753,2492.8,2492.6,0.00112043]
[1646697744537,1.00377,2492.8,2492.6,0.00112043]
[1646697744733,9.1972,2492.7,2492.6,0.00112043]
[1646697745183,9.1972,2492.7,2492.6,0.06944494]
[1646697745387,3.4147964,2493.3,2492.6,0.07313823]
[1646697745388,0.00506123,2493.3,2492.6,0.07313823]
[1646697745594,17.4058,2493.2,2492.6,0.07313823]
[1646697745790,17.4058,2493.2,2492.6,3.07313823]
[1646697745990,17.4058,2493.2,2492.6,0.07313823]
[1646697746293,2.00724,2493.3,2492.6,0.07313823]
[1646697746489,2.00724,2493.3,2492.6,0.06944494]
[1646697746490,14.41165,2493.2,2492.6,0.06944494]
[1646697746691,14.41165,2493.2,2492.8,0.00381529]
[1646697746692,20.86175,2493.2,2492.8,0.00381529]
[1646697746888,1.00364,2493.1,2492.8,0.00381529]
[1646697747090,5.0,2493.0,2492.6,6.023e-05]
[1646697747289,2.49871,2492.9,2492.6,6.023e-05]
[1646697747489,3.70131,2492.9,2492.6,6.023e-05]
[1646697747890,4.70131,2492.9,2492.6,6.023e-05]
[1646697748088,9.20516,2492.9,2492.6,6.023e-05]
[1646697748288,6.00516,2492.9,2492.6,6.023e-05]
[1646697748490,3.5,2492.8,2492.6,6.023e-05]
[1646697748691,0.491,2492.7,2492.6,6.023e-05]
[1646697748937,28.0798,2492.7,2492.6,6.023e-05]
[1646697749137,37.82707702,2492.7,2492.6,6.023e-05]